[Event "FRA-ch Teams Top 16-Bas 2022"]
[Site "Chartres"]
[Date "2022.06.16"]
[Round "8.22"]
[White "Godart, Francois"]
[Black "Feller, Sebastien"]
[Result "1/2-1/2"]
[ECO "C36"]
[WhiteElo "2399"]
[BlackElo "2569"]
[Annotator "TA"]
[PlyCount "84"]
[EventDate "2022.06.16"]
[EventType "team-tourn"]
[EventCountry "FRA"]
[SourceTitle "playchess.com"]
[Source "ChessBase"]
[SourceQuality "1"]
[TimeControl "40/5400+30:1800+30"]

{[%evp 11,84,0,-14,-7,17,15,15,27,18,17,12,17,12,14,51,23,39,50,56,43,68,64,57,39,29,0,34,0,0,0,8,0,0,0,0,0,0,0,0,0,0,0,0,0,0,0,0,-6,0,-1,0,0,0,0,0,0,0,0,0,0,0,0,0,0,0,0,0,0,0,0,0,0,0,-8,-8]} 1. e4 {[%emt 1:31:00]} e5 {[%emt 0:00:06]} 2. f4 {[%emt 0:00:00]} d5 {[%emt 0:00:05]} 3. exd5 {[%emt 0:00:00]} exf4 {[%emt 0:00:03]} 4. Nf3 {[%emt 0:00:00]} Nf6 {[%emt 0:00:06]} 5. Bb5+ {[%emt 0:00:00]} c6 {[%emt 0:00:21]} 6. dxc6 {[%emt 0:00:00]} Nxc6 {[%emt 0:00:04]} 7. Nc3 {[%emt 0:00:00] [#] C36: King's Gambit Accepted: 3 Nf3 d5.} Qb6 $146 {[%emt 0:00:06]} ({Predecessor:} 7... Bd6 8. Qe2+ Be6 9. Nd4 O-O 10. Nxe6 fxe6 11. Bxc6 bxc6 12. b3 Nd5 13. Bb2 f3 14. gxf3 Nf4 {1-0 (36) Nepomniachtchi,I (2773)-Demchenko,A (2654) Chess.com INT 2022}) 8. d4 {[%emt 0:00:00]} Bb4 {[%emt 0:12:27] [#] ...Qxb5 is the strong threat.} 9. O-O {[%emt 0:00:00]} O-O {[%emt 0:02:30]} 10. Bxc6 {[%emt 0:00:00]} (10. Bxf4 $2 Bxc3 11. Bxc6 Bxb2 $19) 10... Bxc3 {[%emt 0:10:11]} 11. bxc3 {[%emt 0:00:00] And now Ba4 would win.} Qxc6 {[%emt 0:07:01]} 12. Qd3 $1 {[%emt 0:00:00] Prevents Bf5.} b5 {[%emt 0:19:46]} 13. Bxf4 {[%emt 0:00:00][%cal Oa2a4]} (13. a4 $5 {[%cal Ra4b5]}) 13... Be6 {[%emt 0:03:26]} 14. Ne5 {[%emt 0:00:00]} Qd5 {[%emt 0:01:08]} 15. a4 {[%emt 0:00:00]} a6 {[%emt 0:01:58]} 16. axb5 {[%emt 0:00:00]} axb5 {[%emt 0:02:24]} 17. Rxa8 {[%emt 0:00:00]} Rxa8 {[%emt 0:00:09]} 18. Rb1 {[%emt 0:00:00]} Ne4 {[%emt 0:02:20]} (18... Qa2 $5 {[%cal Ra2b1]} 19. Re1 (19. Rxb5 Qa1+ 20. Kf2 Bd5 $11) (19. Qxb5 Ne4 $11) 19... h6 $14) 19. c4 {[%emt 0:00:00]} bxc4 {[%emt 0:00:21] The position is equal.} 20. Nxc4 {[%emt 0:00:00]} Qb5 {[%emt 0:08:08]} 21. Nd2 {[%emt 0:00:00]} (21. Rxb5 $2 {is the wrong capture.} Ra1+ 22. Qf1 Rxf1+ 23. Kxf1 Bxc4+ 24. Ke1 Bxb5 $19) 21... Qxd3 {[%emt 0:02:53]} 22. cxd3 {[%emt 0:00:00]} Nc3 {[%emt 0:00:10]} 23. Rb8+ {[%emt 0:00:00]} Rxb8 {[%emt 0:00:04]} 24. Bxb8 $11 {[%emt 0:00:00][%mdl 4096] Endgame KBN-KBN} Ne2+ {[%emt 0:01:06]} 25. Kf2 {[%emt 0:00:00]} Nxd4 {[%emt 0:00:03]} 26. Be5 {[%emt 0:00:00]} Nc6 {[%emt 0:00:25]} 27. Bc3 {[%emt 0:00:00]} f6 {[%emt 0:00:49]} 28. Nc4 {[%emt 0:00:00]} Kf7 {[%emt 0:00:32]} 29. Ne3 {[%emt 0:00:00]} Bb3 {[%emt 0:00:06]} 30. h4 {[%emt 0:02:06]} h5 {[%emt 0:09:24]} 31. Kf3 {[%emt 0:02:25]} Ke6 {[%emt 0:00:36]} 32. d4 {[%emt 0:01:35]} Bd5+ {[%emt 0:01:07]} 33. Kf4 {[%emt 0:00:28]} Ne7 {[%emt 0:00:46]} 34. g4 $1 {[%emt 0:00:54]} hxg4 {[%emt 0:09:47]} 35. Kxg4 {[%emt 0:00:25]} Be4 {[%emt 0:01:04]} 36. Bb4 {[%emt 0:03:32]} Nd5 {[%emt 0:05:53]} 37. Nxd5 {[%emt 0:00:15]} Kxd5 {[%emt 0:00:04] KB-KB} 38. h5 {[%emt 0:01:11]} Kxd4 {[%emt 0:00:25]} 39. Bf8 {[%emt 0:00:06]} g5 {[%emt 0:00:15]} 40. hxg6 {[%emt 0:00:06]} Bxg6 {[%emt 0:00:05]} 41. Bg7 {[%emt 0:30:04]} Ke5 {[%emt 0:30:06]} 42. Bxf6+ {[%emt 0:00:04]} Kxf6 {[%emt 0:00:46] Weighted Error Value: White=0.05 (flawless) /Black=0.05 (flawless)} 1/2-1/2

[Event "FRA-ch Teams Top 16-Bas 2022"]
[Site "Chartres"]
[Date "2022.06.16"]
[Round "8.24"]
[White "Monpeurt, Cyrielle"]
[Black "Schippke, Manon"]
[Result "0-1"]
[ECO "B48"]
[WhiteElo "2172"]
[BlackElo "2072"]
[Annotator "NA RC"]
[PlyCount "84"]
[EventDate "2022.06.16"]
[EventType "team-tourn"]
[EventCountry "FRA"]
[SourceTitle "playchess.com"]
[Source "ChessBase"]
[SourceQuality "1"]
[TimeControl "40/5400+30:1800+30"]

1. e4 {[%emt 0:00:04]} c5 {[%emt 0:00:02]} 2. Nf3 {[%emt 0:00:07]} e6 {[%emt 0:00:03]} 3. d4 {[%emt 0:00:26]} cxd4 {[%emt 0:00:03]} 4. Nxd4 {[%emt 0:00:05]} Nc6 {[%emt 0:00:24]} 5. Nc3 {[%emt 0:00:34]} Qc7 {[%emt 0:00:18]} 6. Be3 {[%emt 0:01:12]} a6 {[%emt 0:00:04]} 7. Bd3 {[%emt 0:00:33]} Nf6 {[%emt 0:00:08]} 8. O-O {[%emt 0:00:25]} b5 {[%emt 0:00:02]} 9. Nxc6 {[%emt 0:04:43]} Qxc6 {[%emt 0:00:04]} 10. Re1 {[%emt 0:01:15]} Bb7 {[%emt 0:06:13]} 11. Qe2 {[%emt 0:17:10]} b4 {[%emt 0:13:16]} 12. Nd5 {[%emt 0:00:06]} Nxd5 {[%emt 0:06:41]} 13. exd5 {[%emt 0:00:43]} Qxd5 {[%emt 0:00:26]} 14. f3 {[%emt 0:04:30]} Qh5 {[%emt 0:08:08]} 15. Rad1 {[%emt 0:08:30]} Bd6 {[%emt 0:16:02]} 16. g4 {[%emt 0:00:43]} Qh3 {[%emt 0:00:38]} 17. Be4 {[%emt 0:02:14]} Bxe4 {[%emt 0:01:15]} 18. fxe4 {[%emt 0:00:09]} Be5 {[%emt 0:00:51]} 19. Rd3 {[%emt 0:03:56]} Qh4 {[%emt 0:02:08]} 20. Red1 {[%emt 0:04:46]} h5 {[%emt 0:15:32]} 21. g5 {[%emt 0:17:05]} d6 {[%emt 0:02:42]} 22. Qg2 {[%emt 0:06:48]} O-O {[%emt 0:07:41]} 23. h3 {[%emt 0:03:16]} Rac8 {[%emt 0:04:40]} 24. Bd4 {[%emt 0:11:45]} Rc4 {[%emt 0:02:27]} 25. b3 {[%emt 0:01:38]} Rxd4 {[%emt 0:00:25]} 26. Rxd4 {[%emt 0:00:05]} Bxd4+ {[%emt 0:00:02]} 27. Rxd4 {[%emt 0:00:07]} d5 {[%emt 0:00:24]} 28. Kh2 {[%emt 0:03:51]} Qf4+ {[%emt 0:00:26]} 29. Qg3 {[%emt 0:00:42]} Qc1 {[%emt 0:00:05]} 30. exd5 {[%emt 0:01:01]} Qxc2+ {[%emt 0:00:07]} 31. Qg2 {[%emt 0:00:19]} Qc3 {[%emt 0:01:21]} 32. Qd2 {[%emt 0:00:46]} exd5 {[%emt 0:00:31]} 33. Rxd5 {[%emt 0:01:05]} Qc7+ {[%emt 0:01:26]} 34. Kg2 {[%emt 0:00:19]} Re8 {[%emt 0:00:40]} 35. Rd7 {[%emt 0:01:31]} Qc6+ {[%emt 0:01:35]} 36. Kh2 {[%emt 0:00:09]} Qc5 {[%emt 0:03:14]} 37. Kg2 {[%emt 0:02:37]} Re5 {[%emt 0:02:52]} 38. h4 {[%emt 0:00:53]} Qc6+ {[%emt 0:01:00]} 39. Kh2 {[%emt 0:00:43]} Qe6 {[%emt 0:00:16]} 40. Rd8+ {[%emt 0:00:29]} Kh7 {[%emt 0:00:03]} 41. Qc2+ {[%emt 0:31:50]} g6 {[%emt 0:30:28]} 42. Rd2 {[%emt 0:00:00]} Re4 {[%emt 0:00:00]} 0-1

[Event "FRA-ch Teams Top 16-Bas 2022"]
[Site "Chartres"]
[Date "2022.06.16"]
[Round "8.25"]
[White "Alonso Rosell, Alvar"]
[Black "Vernay, Clovis"]
[Result "1/2-1/2"]
[ECO "D11"]
[WhiteElo "2557"]
[BlackElo "2523"]
[Annotator "TA"]
[PlyCount "31"]
[EventDate "2022.06.16"]
[EventType "team-tourn"]
[EventCountry "FRA"]
[SourceTitle "playchess.com"]
[Source "ChessBase"]
[SourceQuality "1"]
[TimeControl "40/5400+30:1800+30"]

{[%evp 9,31,10,12,0,3,3,0,10,18,11,14,0,51,27,24,20,25,10,6,15,14,0,0,-6]} 1. d4 {[%emt 0:00:08]} d5 {[%emt 0:00:12]} 2. c4 {[%emt 0:00:04]} c6 {[%emt 0:00:08]} 3. Nf3 {[%emt 0:00:03]} Nf6 {[%emt 0:00:06][%cal Bg8f6,Bf6d5,Bd5b4][%mdl 32]} 4. g3 {[%emt 0:00:03]} Bg4 {[%emt 0:08:27]} 5. Ne5 {[%emt 0:00:37]} Bf5 {[%emt 0:03:59]} 6. Qb3 {[%emt 0:00:26] D11: Slav Defence: 3 Nf3 sidelines and 3...Nf6 4 e3 Bg4.} Qb6 {[%emt 0:01:30]} 7. cxd5 {[%emt 0:00:33]} Qxb3 {[%emt 0:41:42]} 8. axb3 {[%emt 0:00:55]} Nxd5 {[%emt 0:00:22]} 9. Bg2 {[%emt 0:00:43] [#] And now e4 would win.} Nb4 {[%emt 0:10:12] Strongly threatening ...Nc2+.} 10. O-O {[%emt 0:00:45][%cal Oa1a4]} Nd7 {[%emt 0:01:32] [#]} (10... Nc2 $11 11. Ra4 f6) 11. Ra4 $146 {[%emt 0:28:57]} ({Predecessor:} 11. e4 Nxe5 12. exf5 Ned3 13. Bd2 g6 14. Bc3 Nd5 15. Bxd5 cxd5 16. Rd1 Nxf2 17. Kxf2 gxf5 {1-0 (41) Lysyj,I (2594)-Mikhailovsky,V (2228) Chess.com INT 2020}) 11... e6 $1 {[%emt 0:00:40]} 12. Bd2 {[%emt 0:36:27]} Bxb1 {[%emt 0:00:46]} 13. Nxd7 {[%emt 0:05:14]} Kxd7 {[%emt 0:00:14] The position is equal.} 14. Rxb1 {[%emt 0:00:12]} a5 {[%emt 0:00:15]} 15. Rba1 {[%emt 0:07:39]} b6 {[%emt 0:00:02]} 16. Rc1 {[%emt 0:02:57] Weighted Error Value: White=0.08 (flawless) /Black=0.09 (flawless)} 1/2-1/2

[Event "FRA-ch Teams Top 16-Bas 2022"]
[Site "Chartres"]
[Date "2022.06.16"]
[Round "8.26"]
[White "Benitah, Yohan"]
[Black "Song, Julien"]
[Result "0-1"]
[ECO "D33"]
[WhiteElo "2383"]
[BlackElo "2388"]
[Annotator "TA"]
[PlyCount "74"]
[EventDate "2022.06.16"]
[EventType "team-tourn"]
[EventCountry "FRA"]
[SourceTitle "playchess.com"]
[Source "ChessBase"]
[SourceQuality "1"]
[TimeControl "40/5400+30:1800+30"]

{[%evp 15,74,31,35,20,13,33,31,27,19,28,35,21,16,19,17,-6,-12,-14,-8,-44,0,-1,0,-37,7,0,0,-18,0,0,0,-2,15,0,16,0,0,0,0,-62,-61,-64,-73,-121,-62,-185,-194,-306,-281,-558,-512,-763,-768,-919,-935,-907,-870,-1881,-1819,-29982,-29983]} 1. d4 {[%emt 0:00:03]} d5 {[%emt 0:00:19]} 2. c4 {[%emt 0:00:11]} e6 {[%emt 0:00:28]} 3. Nc3 {[%emt 0:00:19]} c5 {[%emt 0:00:59]} 4. cxd5 {[%emt 0:00:12]} exd5 {[%emt 0:00:21]} 5. Nf3 {[%emt 0:00:14]} Nc6 {[%emt 0:00:42]} 6. g3 {[%emt 0:01:35]} Nf6 {[%emt 0:00:31]} 7. Bg2 {[%emt 0:00:19]} cxd4 {[%emt 0:00:47] is cutting edge theory.} 8. Nxd4 {[%emt 0:00:06]} Bc5 {[%emt 0:00:25]} 9. Be3 {[%emt 0:00:04] Strongly threatening Nxc6. D33: Tarrasch Defence: 6 g3 sidelines.} Qb6 {[%emt 0:01:34][%csl LRb2,LRd4][%cal Rc5d4]} 10. Na4 {[%emt 0:30:43]} Qb4+ {[%emt 0:01:39]} 11. Bd2 {[%emt 0:05:51] White is slightly better.} Qxd4 {[%emt 0:02:29][%csl Gc5][%cal Rd4f2]} 12. e3 $1 {[%emt 0:00:08]} Qe5 {[%emt 0:00:40] Threatens to win with ...Bg4.} 13. Nxc5 {[%emt 0:00:08]} Qxb2 {[%emt 0:01:03]} 14. O-O {[%emt 0:06:46]} O-O {[%emt 0:02:11] [#]} 15. Na4 $146 {[%emt 0:04:48][%mdl 1024] White has compensation.} ({Predecessor:} 15. Nd3 Qa3 16. Bc1 Qe7 17. Bb2 Rd8 18. Nf4 Be6 19. Qa4 Ne4 20. Rfd1 f6 21. Rab1 {½-½ (63) Abdusattorov,N (2661)-Oparin,G (2674) Chess.com INT 2022}) 15... Qa3 {[%emt 0:12:38]} 16. Bc3 {[%emt 0:05:52]} Bg4 {[%emt 0:25:51]} 17. Qc2 {[%emt 0:09:17]} Qe7 {[%emt 0:03:07]} 18. Qb2 {[%emt 0:05:01]} Rfd8 {[%emt 0:08:28][%cal Bf8d8,Bd8d6,Bd6e6,Be6g6][%mdl 32]} 19. Rac1 {[%emt 0:07:20][%cal Oa4c5]} Rd6 {[%emt 0:08:25]} 20. Nc5 {[%emt 0:04:26]} b6 {[%emt 0:04:15]} 21. Nb3 {[%emt 0:05:01]} Rad8 {[%emt 0:02:21]} 22. Nd4 {[%emt 0:00:17]} Nxd4 {[%emt 0:00:44]} 23. Bxd4 {[%emt 0:00:02] A strong pair of Bishops.} h5 {[%emt 0:03:47]} 24. a4 {[%emt 0:02:53]} Re6 {[%emt 0:09:02]} 25. Rc3 {[%emt 0:02:34]} Ne4 {[%emt 0:03:16]} 26. Rc2 {[%emt 0:00:15] Hoping for f3.} Ng5 {[%emt 0:02:04][%cal Oh5h4]} 27. f3 {[%emt 0:02:49]} ({Better is} 27. Bxg7 $11 Rg6 28. Bd4) 27... Bf5 $15 {[%emt 0:00:41]} 28. Rc3 {[%emt 0:01:56]} Rg6 {[%emt 0:02:14][%cal Oh5h4]} 29. a5 {[%emt 0:02:21]} (29. Rfc1 $142) 29... bxa5 {[%emt 0:00:37] Black is more active.} (29... h4 $17 {aiming for ...Nh3+.} 30. axb6 axb6) 30. Rc5 {[%emt 0:00:37] [#] Now White is beyond hope.} (30. Qa3 $1 $15 Qb4 31. Rb3 Qxa3 32. Rxa3) 30... h4 $1 $19 {[%emt 0:01:13][%cal Bh5h4,Bh4h3][%mdl 32]} 31. g4 {[%emt 0:01:32]} (31. Rxa5 {was necessary.} hxg3 32. Rxa7 gxh2+ 33. Kh1) 31... h3 {[%emt 0:01:16]} 32. Bh1 $2 {[%emt 0:01:36]} (32. gxf5 Nxf3+ 33. Rxf3 Rxg2+ 34. Qxg2 hxg2 35. Rg3) 32... Ne6 {[%emt 0:00:12]} 33. Rxa5 {[%emt 0:00:40] [#]} Bxg4 $1 {[%emt 0:00:10][%mdl 512]} 34. Kf2 {[%emt 0:00:44]} (34. Be5 Nf4) 34... Qh4+ {[%emt 0:01:40]} 35. Ke2 {[%emt 0:00:16]} Bf5 {[%emt 0:00:42] White must now prevent ...Rc8.} 36. Rxa7 {[%emt 0:00:55]} Rc8 {[%emt 0:00:13]} 37. Rc1 {[%emt 0:00:26]} Rxc1 {[%emt 0:00:46] Weighted Error Value: White=0.80/Black=0.07 (flawless)} 0-1

[Event "FRA-ch Teams Top 16-Bas 2022"]
[Site "Chartres"]
[Date "2022.06.16"]
[Round "8.27"]
[White "Relange, Eloi"]
[Black "Buscara, Sevan"]
[Result "1/2-1/2"]
[ECO "A12"]
[WhiteElo "2456"]
[BlackElo "2385"]
[Annotator "TA"]
[PlyCount "75"]
[EventDate "2022.06.16"]
[EventType "team-tourn"]
[EventCountry "FRA"]
[SourceTitle "playchess.com"]
[Source "ChessBase"]
[SourceQuality "1"]
[TimeControl "40/5400+30:1800+30"]

{[%evp 19,75,0,0,-27,-5,-13,0,-13,-16,-26,-25,-32,-26,-39,-21,-22,28,0,14,-15,0,-10,-9,-12,11,0,0,-1,23,16,11,20,18,0,70,84,83,76,84,77,123,119,171,79,84,-146,-139,-124,-116,-137,0,0,0,0,2,-10,-9,-6]} 1. Nf3 {[%emt 0:00:12]} d5 {[%emt 0:00:07]} 2. g3 {[%emt 0:00:56]} Bg4 {[%emt 0:00:12]} 3. Bg2 {[%emt 0:00:19]} Nd7 {[%emt 0:00:07]} 4. c4 {[%emt 0:01:25]} e6 {[%emt 0:00:18]} 5. b3 {[%emt 0:04:17]} Ngf6 {[%emt 0:02:04]} 6. Bb2 {[%emt 0:00:35]} c6 {[%emt 0:02:48]} 7. O-O {[%emt 0:00:40]} Be7 {[%emt 0:01:05]} 8. d3 {[%emt 0:00:37]} O-O {[%emt 0:00:22]} 9. Nbd2 {[%emt 0:01:36]} a5 {[%emt 0:00:29]} 10. a3 {[%emt 0:00:08]} h6 {[%emt 0:00:36] [#]} 11. Qb1 $146 {[%emt 0:01:19] A12: English Opening: 1...c6 with b3 by White.} ({Predecessor:} 11. Qc2 Bf5 12. Bc3 Bh7 13. Qb2 Nc5 14. Rfd1 Re8 {½-½ (14) Kozul,Z (2593)-Bosiocic,M (2598) Hungary 2020}) 11... Re8 {[%emt 0:05:54]} 12. Bc3 {[%emt 0:19:16]} Bd6 {[%emt 0:02:25]} 13. h3 {[%emt 0:04:07]} Bh5 {[%emt 0:04:43][%cal Bg4h5,Bh5g6,Bg6h7][%mdl 32]} 14. b4 {[%emt 0:02:54]} e5 {[%emt 0:01:36]} 15. e3 {[%emt 0:09:49] Prevents d4.} Bg6 {[%emt 0:02:25]} 16. Rd1 {[%emt 0:15:30]} Bh7 {[%emt 0:01:01]} 17. Ne1 {[%emt 0:02:59]} Bf8 {[%emt 0:16:07]} (17... Nb6 $142) 18. Qb3 {[%emt 0:01:53][%cal Rc4d5]} Qc7 {[%emt 0:09:11]} 19. Rac1 {[%emt 0:00:59][%cal Rc4d5]} axb4 {[%emt 0:00:33]} 20. axb4 {[%emt 0:00:08]} Qd6 {[%emt 0:00:32]} 21. Ra1 {[%emt 0:09:43]} b6 {[%emt 0:05:49]} 22. Rxa8 {[%emt 0:01:39]} Rxa8 {[%emt 0:02:47]} 23. Qb2 {[%emt 0:00:58]} Re8 {[%emt 0:04:06]} 24. b5 {[%emt 0:02:14]} cxb5 {[%emt 0:11:26]} 25. Qxb5 {[%emt 0:00:40][%cal Rc4d5]} Rc8 {[%emt 0:01:15]} 26. Bb2 {[%emt 0:03:30][%cal Rc4d5]} e4 {[%emt 0:08:55]} ({Black should try} 26... Rc5 $11 27. Ba3 Rxb5 28. Bxd6 Ra5 29. Bxf8 Kxf8) 27. cxd5 $14 {[%emt 0:02:00][%cal Rd2e4]} Rc5 {[%emt 0:01:01]} 28. Qb3 {[%emt 0:02:18][%cal Rd3e4]} Rxd5 {[%emt 0:02:03]} 29. Bd4 {[%emt 0:01:10][%cal Rd2e4]} Nc5 {[%emt 0:04:10]} (29... Qe6 $142) 30. Qb2 $16 {[%emt 0:00:17]} Rg5 {[%emt 0:02:15]} (30... b5 $16 {keeps fighting.}) 31. dxe4 {[%emt 0:03:22]} (31. Bxf6 $18 Qxf6 32. Qxf6 gxf6 33. h4 (33. Nxe4 Nxe4 34. Bxe4 Bxe4 $16) (33. dxe4 Re5 $16)) 31... Nfxe4 {[%emt 0:01:32][%cal Bf6e4,Be4f2,Bf2d1,Bd1b2][%mdl 32]} 32. Nef3 $2 {[%emt 0:01:01] [#]} (32. Nc4 $16 {stays on course.} Qc7 33. Qxb6 Qxb6 34. Nxb6) 32... Nxf2 $1 $17 {[%emt 0:02:01][%mdl 512]} 33. Nxg5 {[%emt 0:05:08]} Nxd1 {[%emt 0:00:45]} 34. Nxf7 {[%emt 0:00:15]} Qe6 {[%emt 0:03:08]} ({Not} 34... Nxb2 35. Nxd6 Bxd6 36. Bxb2 $15) ({Much weaker is} 34... Qxg3 $6 35. Nxh6+ Kh8 36. Nf7+ Kg8 37. Nh6+ Kh8 38. Qa2 Qf2+ 39. Kh2 Nxe3 40. Nf7+ Kg8 41. Nh6+ Kh8 42. Nf7+ Kg8 43. Nh6+ Kh8 $11) (34... Kxf7 $17 35. Qa1 {[#]} Ne6 $1 36. Qxd1 Nxd4 37. exd4 Qxd4+ 38. Kh2 Bf5) 35. Nd8 $11 {[%emt 0:01:18] The position is equal.} Nxb2 {[%emt 0:02:12]} 36. Nxe6 {[%emt 0:00:05]} Nxe6 {[%emt 0:00:26]} 37. Bd5 {[%emt 0:00:31] [#]} Bc5 $1 {[%emt 0:01:29][%cal Og8f7] Hoping for ...Kf7!} 38. Bxe6+ {[%emt 0:00:40] Weighted Error Value: White=0.21 (precise) /Black=0.25 (precise)} 1/2-1/2

[Event "FRA-ch Teams Top 16-Bas 2022"]
[Site "Chartres"]
[Date "2022.06.16"]
[Round "8.28"]
[White "Marzolo, Cyril"]
[Black "Ramirez Garcia, Jorge Alberto"]
[Result "1/2-1/2"]
[ECO "E08"]
[WhiteElo "2376"]
[BlackElo "2242"]
[Annotator "TA"]
[PlyCount "109"]
[EventDate "2022.06.16"]
[EventType "team-tourn"]
[EventCountry "FRA"]
[SourceTitle "playchess.com"]
[Source "ChessBase"]
[SourceQuality "1"]
[TimeControl "40/5400+30:1800+30"]

{[%evp 22,109,28,4,21,10,38,0,0,0,37,41,31,22,27,22,27,29,29,-1,-12,-6,-9,-28,0,0,8,-4,18,-32,15,34,44,-45,133,53,43,41,363,0,0,0,0,0,0,0,0,0,33,29,56,26,25,22,15,18,26,18,123,123,123,123,135,140,126,94,94,8,8,8,80,35,35,37,40,18,12,8,9,11,8,0,0,0,0,0,0,0,0,0]} 1. d4 {[%emt 0:00:02]} d5 {[%emt 0:00:19]} 2. Nf3 {[%emt 0:00:12]} Nf6 {[%emt 0:00:07]} 3. c4 {[%emt 0:01:48]} e6 {[%emt 0:00:56]} 4. g3 {[%emt 0:00:23]} Be7 {[%emt 0:02:31]} 5. Bg2 {[%emt 0:00:37]} O-O {[%emt 0:00:09]} 6. O-O {[%emt 0:00:15]} c6 {[%emt 0:00:12]} 7. Qc2 {[%emt 0:00:36]} b6 {[%emt 0:00:12]} 8. Rd1 {[%emt 0:00:22]} Nbd7 {[%emt 0:04:04]} 9. Nc3 {[%emt 0:08:47]} Bb7 {[%emt 0:07:45]} 10. b3 {[%emt 0:01:41]} Rc8 {[%emt 0:10:23]} 11. Bb2 {[%emt 0:02:34]} Qc7 {[%emt 0:02:21]} 12. e4 {[%emt 0:01:52]} dxe4 {[%emt 0:07:09] E08: Closed Catalan: Main Line: 7 Qc2.} 13. Nxe4 {[%emt 0:01:42]} c5 {[%emt 0:00:48]} 14. d5 {[%emt 0:02:34] Nfg5 is the strong threat.} (14. Nxf6+ {with more complications.} Bxf6 15. dxc5 bxc5 16. Rd2) 14... Nxe4 {[%emt 0:02:08]} 15. Qxe4 {[%emt 0:00:21]} Nf6 {[%emt 0:00:34]} (15... Bf6 $5 {[%cal Rf6b2]} 16. Qc2 exd5 $11) 16. Qc2 {[%emt 0:02:14]} exd5 {[%emt 0:05:10]} 17. Be5 {[%emt 0:02:05]} Qd7 {[%emt 0:02:54]} 18. Ng5 {[%emt 0:00:37]} g6 $1 {[%emt 0:02:15] Strongly threatening ...d4.} 19. cxd5 {[%emt 0:06:54]} Nxd5 {[%emt 0:04:27]} 20. h4 {[%emt 0:04:13][%cal Od1d5]} Rcd8 {[%emt 0:06:45] White must now prevent ...f6.} 21. Bb2 {[%emt 1:01:11] [#]} f6 $146 {[%emt 0:39:51][%mdl 2048] Black has good play.} ({Predecessor:} 21... Qc6 22. Ne4 Ba8 23. Rd2 Rd7 24. Re1 Rfd8 25. Qc1 Qc7 26. h5 b5 27. hxg6 hxg6 {1-0 (35) Donchenko,A (2604)-Krishna,C (2469) Caleta 2019}) 22. Nh3 {[%emt 0:00:30] aiming for Nf4.} Qc8 {[%emt 0:00:00]} (22... Qe6 $5 {[%cal Rd5b4]}) 23. Qc4 {[%emt 0:00:00]} Rf7 $1 {[%emt 0:00:00]} 24. h5 {[%emt 0:00:00]} gxh5 {[%emt 0:00:00][%cal Ob6b5]} 25. Re1 {[%emt 0:00:00]} (25. Rxd5 $11 Bxd5 26. Bxd5 Rxd5 27. Qxd5 Qxh3 28. Re1) 25... Kf8 {[%emt 0:00:00]} (25... Bc6 $15 {feels stronger.}) 26. Rad1 $11 {[%emt 0:00:00]} Rd6 {[%emt 0:00:00]} 27. Qc1 {[%emt 0:00:00]} (27. Rxd5 $14 Bxd5 28. Bxd5 Rxd5 29. Qxd5 Qxh3 30. Re4 (30. Qc6 h4 $15)) 27... Nc7 $2 {[%emt 0:03:00]} (27... Qf5 $15 {stays ahead.}) 28. Qh6+ {[%emt 0:00:00]} (28. Bxb7 $16 Qxh3 29. Rxd6 Bxd6 30. Qd1) 28... Kg8 $14 {[%emt 0:00:00]} 29. Bxb7 {[%emt 0:00:00]} Qxb7 {[%emt 0:00:00][%mdl 8192]} (29... Qxh3 $14 30. Rxd6 Bxd6) 30. Nf4 $2 {[%emt 0:00:07]} ({Less strong is} 30. Qxh5 Rxd1 31. Qxd1 Qc6 $14) (30. Rxd6 $1 $18 {[%cal Oh3g5] Threatening mate with Ng5!} Bxd6 31. Ng5) 30... Rxd1 $11 {[%emt 0:00:00]} 31. Rxd1 {[%emt 0:00:04]} Qf3 {[%emt 0:00:00]} 32. Rd3 {[%emt 0:00:42]} Qg4 {[%emt 0:00:37]} 33. Qxh5 {[%emt 0:02:12]} Qxh5 {[%emt 0:00:05]} 34. Nxh5 {[%emt 0:00:03]} Ne8 {[%emt 0:01:11]} 35. Rd7 {[%emt 0:00:15]} Ng7 {[%emt 0:00:57]} 36. Nxg7 {[%emt 0:01:11]} (36. Nf4 $5 {[%cal Rf4d5]}) 36... Kxg7 {[%emt 0:00:02]} 37. Rxa7 $14 {[%emt 0:00:04][%mdl 4096] Endgame KRB-KRB} Bd6 {[%emt 0:00:14]} 38. Ra6 {[%emt 0:00:25]} Rb7 {[%emt 0:00:16]} 39. Kg2 {[%emt 0:00:27]} Be5 {[%emt 0:00:17]} (39... h5 $11 {remains equal.}) 40. Bxe5 $16 {[%emt 0:00:40]} fxe5 {[%emt 0:00:02] [#] KR-KR} 41. Kf3 $1 {[%emt 0:30:07]} Rf7+ {[%emt 0:06:58]} 42. Ke3 {[%emt 0:00:00]} Rf6 {[%emt 0:01:06]} 43. f3 {[%emt 0:00:00]} h5 {[%emt 0:05:44] [#]} 44. a4 {[%emt 0:00:00]} (44. Ra7+ $1 $16 Kh6 45. Re7) 44... Rg6 $1 $11 {[%emt 0:21:01]} 45. Kf2 {[%emt 0:00:00]} Kh6 {[%emt 0:00:00]} (45... Rf6 $11) 46. Ra7 {[%emt 0:00:00]} Kg5 {[%emt 0:00:00]} 47. Re7 {[%emt 0:00:00]} Kf5 {[%emt 0:00:00]} 48. Rh7 {[%emt 0:00:00]} Kg5 {[%emt 0:00:00] The position is equal.} 49. Ke3 {[%emt 0:00:00]} Rc6 {[%emt 0:00:00]} 50. Kd3 {[%emt 0:00:00]} Rd6+ $1 {[%emt 0:00:00]} 51. Ke3 {[%emt 0:02:02]} Rd4 {[%emt 0:00:00]} 52. a5 {[%emt 0:02:08]} bxa5 {[%emt 0:00:00]} 53. Rc7 {[%emt 0:00:22]} Rb4 {[%emt 0:00:00]} 54. Rxc5 {[%emt 0:00:16]} Kf5 {[%emt 0:00:00]} 55. Rxa5 {[%emt 0:02:21] Weighted Error Value: White=0.25 (precise) /Black=0.30} 1/2-1/2